bitfinex/quotes_ETHUSD_20250210
["timestamp","ask_amount","ask_price","bid_price","bid_amount"]
[1739202659548,3.76628,2655.2,2654.7,0.0912536]
[1739202659746,3.76552,2655.7,2654.8,0.7953]
[1739202659747,3.76595,2655.4,2654.8,0.7953]
[1739202659952,3.76618,2655.3,2654.8,4.56198]
[1739202660277,3.76618,2655.3,2654.9,0.09084479]
[1739202660577,3.76595,2655.4,2654.9,0.09084479]
[1739202660578,3.76647,2655.0,2654.9,0.09084479]
[1739202660929,3.0,2655.1,2654.2,3.9928]
[1739202661138,3.7673,2654.5,2654.2,3.9928]
[1739202661466,7.53459,2654.5,2654.3,0.08789404]
[1739202661781,3.76704,2654.6,2654.2,0.7953]
[1739202661961,3.76669,2654.9,2654.4,0.08779463]
[1739202662131,3.76685,2654.8,2654.4,0.7953]
[1739202662332,3.76685,2654.8,2654.5,0.08769522]
[1739202662557,3.76691,2654.7,2654.5,0.08769522]
[1739202663371,3.76668,2654.9,2654.5,0.08769522]
[1739202663580,3.76679,2654.8,2654.5,0.08769522]
[1739202663877,3.76691,2654.7,2654.5,0.08769522]
[1739202664067,3.76704,2654.6,2654.5,0.08769522]
[1739202664263,7.5334,2654.9,2654.5,0.08769522]
[1739202664470,3.7669,2654.7,2654.5,0.08769522]
[1739202665535,3.76665,2654.9,2654.5,0.08769522]
[1739202666030,3.76639,2655.1,2654.6,0.7953]
[1739202666379,3.76639,2655.1,2654.7,0.08749643]
[1739202667077,0.807,2655.4,2654.7,0.08749643]
[1739202667379,0.74514388,2655.4,2654.8,3.34781028]
[1739202667688,3.76536,2655.8,2655.2,0.7953]
[1739202667876,3.76551,2655.7,2655.2,4.59914722]
[1739202668173,3.76536,2655.8,2655.3,0.08691107]
[1739202668378,3.76551,2655.7,2655.4,3.34781028]
[1739202668578,3.76536,2655.8,2655.4,3.34781028]
[1739202668737,3.76562,2655.6,2655.5,0.0867124]
[1739202674090,3.7655,2655.7,2655.5,0.9186124]
[1739202674391,0.8011,2656.5,2655.7,3.76536]
[1739202674572,3.76489,2656.2,2655.7,3.76536]
[1739202674745,3.76499,2656.1,2655.8,0.08601763]
[1739202674937,3.76489,2656.2,2655.6,3.80320208]
[1739202675156,3.76506,2656.0,2655.9,0.08591111]
[1739202675338,3.76493,2656.1,2655.5,4.17971028]
[1739202675566,7.52996,2656.1,2655.9,0.08591111]
[1739202675772,3.76506,2656.0,2655.5,7.94547028]
[1739202676073,3.76506,2656.0,2655.5,4.17971028]
[1739202676448,3.76467,2656.3,2655.7,3.76539]
[1739202676773,3.76486,2656.2,2655.8,0.8319]
[1739202676968,3.76507,2656.0,2655.8,0.8319]
[1739202677157,3.7652,2655.9,2655.8,0.8319]
[1739202677894,3.76493,2656.1,2655.8,0.8319]
[1739202678090,3.7648,2656.2,2655.8,0.8319]
[1739202678991,7.52946,2656.3,2655.8,4.59723]
[1739202679182,1.55419232,2656.6,2655.8,4.59723]
[1739202679183,0.75309232,2656.6,2655.9,0.86394821]
[1739202679378,5.97081604,2656.9,2656.0,3.34781028]
[1739202679379,3.76449,2656.4,2656.0,3.34781028]
[1739202679868,3.76423,2656.6,2656.0,3.34781028]
[1739202680189,7.52784,2656.8,2656.0,3.34781028]
[1739202680391,6.70671593,2656.9,2656.0,7.11285028]
[1739202680688,6.70671593,2656.9,2656.1,0.08558633]
[1739202680689,3.76455,2656.4,2656.1,0.08558633]
[1739202681346,3.76392,2656.8,2656.2,4.59097]
[1739202681347,3.76414,2656.7,2656.2,4.59097]
[1739202681658,3.76414,2656.7,2656.2,0.91178705]
[1739202681971,3.76414,2656.7,2656.3,3.34781028]
[1739202682290,3.76421,2656.6,2656.4,0.08484146]
[1739202682645,3.76435,2656.5,2656.4,0.08484146]
[1739202685665,3.76422,2656.6,2656.4,0.08484146]
[1739202685860,3.76435,2656.5,2656.4,0.08484146]
[1739202686545,3.76421,2656.6,2656.4,0.91114146]
[1739202686751,3.76393,2656.8,2656.4,0.91114146]
[1739202686961,3.76417,2656.7,2656.4,0.91114146]
[1739202687168,3.76421,2656.6,2656.4,0.91114146]
[1739202687553,3.76435,2656.5,2656.4,0.08484146]
[1739202689274,3.76421,2656.6,2656.4,0.08484146]
[1739202689476,3.76416,2656.7,2656.4,0.08484146]
[1739202689793,3.76422,2656.6,2656.4,0.08484146]
[1739202690195,3.76435,2656.5,2656.4,0.08484146]
[1739202691666,3.76435,2656.5,2656.3,3.34781028]
[1739202691868,3.76449,2656.4,2656.3,3.34781028]
[1739202695130,3.76384,2656.9,2656.4,0.8248]
[1739202695284,3.76399,2656.8,2656.4,0.8248]
[1739202695924,3.76406,2656.7,2656.5,0.08477826]
[1739202696091,3.76406,2656.7,2656.6,3.34781028]
[1739202696283,3.76406,2656.7,2656.6,3.43248929]
[1739202697424,4.52346,2656.7,2656.6,3.43248929]
[1739202698397,3.76406,2656.7,2656.6,3.43248929]
[1739202699479,3.76406,2656.7,2656.6,0.08467901]
[1739202699683,3.76406,2656.7,2656.3,3.34781028]
[1739202699910,3.76449,2656.4,2656.3,3.34781028]
[1739202700638,3.76449,2656.4,2656.3,4.17261028]
[1739202700808,3.76449,2656.4,2656.3,3.34781028]
[1739202705955,3.7642,2656.6,2656.3,4.17381028]
[1739202706161,3.76366,2657.0,2656.3,7.93844028]
[1739202706162,3.76375,2657.0,2656.3,7.93844028]
[1739202706315,3.76408,2656.7,2656.3,7.93844028]
[1739202706751,3.76408,2656.7,2656.3,4.17381028]
[1739202707354,3.76434,2656.6,2656.3,4.17381028]
[1739202707555,4.53277449,2657.0,2656.3,4.17381028]
[1739202707556,3.76441,2656.5,2656.3,4.17381028]
[1739202707721,3.76449,2656.4,2656.3,4.17381028]
[1739202707913,3.76449,2656.4,2656.3,3.34781028]
[1739202708326,3.76449,2656.4,2656.0,0.826]
[1739202708527,3.76443,2656.5,2656.0,0.826]
[1739202708823,5.30685449,2657.0,2656.3,4.54999]
[1739202709067,4.55179,2657.6,2656.8,4.54922]
[1739202709226,3.76311,2657.4,2656.8,11.51054]
[1739202709422,3.76311,2657.4,2656.8,7.74671]
[1739202709965,3.76311,2657.4,2656.8,3.9829]
[1739202710162,3.76346,2657.2,2656.8,3.9829]
[1739202710725,3.76346,2657.2,2656.9,0.08414348]
[1739202711123,3.76314,2657.4,2656.9,0.08414348]
[1739202711804,3.76345,2657.2,2656.9,0.08414348]
[1739202712063,2.94302796,2657.8,2656.9,0.08414348]
[1739202712275,3.76315,2657.4,2656.9,0.08414348]
[1739202713065,3.76339,2657.2,2656.9,0.08414348]
[1739202713370,3.76364,2657.0,2656.9,0.08414348]
[1739202713733,3.76364,2657.0,2656.5,0.7854]
[1739202714074,7.52711,2657.1,2656.9,0.08406423]
[1739202714236,3.76351,2657.1,2656.5,4.58737895]
[1739202714443,3.76328,2657.3,2656.6,3.76419]
[1739202714642,3.76328,2657.3,2656.7,0.7854]
[1739202714945,3.76366,2657.0,2656.7,0.86969151]
[1739202715262,3.76378,2656.9,2656.8,3.34781028]
[1739202715653,3.76378,2656.9,2656.8,3.43200255]
[1739202717365,4.55235,2657.2,2656.8,3.43200255]
[1739202717670,3.76353,2657.1,2656.8,3.43200255]
[1739202718184,0.76095597,2657.3,2656.8,3.43200255]
[1739202718364,3.76367,2657.0,2656.8,3.43200255]
[1739202718786,7.52743,2657.0,2656.8,3.43200255]
[1739202719080,7.52741,2657.0,2656.8,3.43200255]
[1739202719320,3.76367,2657.0,2656.8,3.43200255]
[1739202720443,3.76344,2657.2,2656.8,3.43200255]
[1739202720774,3.76266,2657.7,2656.9,4.57717]
[1739202720775,3.76311,2657.4,2656.9,4.57717]
[1739202720978,3.76311,2657.4,2656.9,4.66110806]
[1739202721183,0.7898,2657.7,2656.9,4.66110806]
[1739202721341,3.76309,2657.4,2657.0,7.11144028]
[1739202721539,1.52475777,2657.7,2657.0,3.43164912]
[1739202721782,3.76318,2657.4,2657.0,3.43164912]
[1739202721954,7.52634,2657.4,2657.0,3.43164912]
[1739202722151,3.76316,2657.4,2657.0,3.43164912]
[1739202722542,3.76303,2657.5,2657.1,0.8135]
[1739202722847,4.49769777,2657.7,2657.1,0.8135]
[1739202722848,4.49769777,2657.7,2657.1,4.66071963]
[1739202723291,0.7898,2657.6,2657.1,0.08373963]
[1739202723488,3.76331,2657.3,2657.1,0.08373963]
[1739202723694,3.76335,2657.2,2657.1,0.08373963]
[1739202724197,3.76307,2657.4,2657.1,0.08373963]
[1739202724355,0.7898,2658.1,2657.2,4.16131028]
[1739202724556,0.7898,2658.1,2657.7,0.8135]
[1739202724808,3.76219,2658.1,2657.7,4.16131028]
[1739202725097,3.76248,2657.9,2657.8,0.08286886]
[1739202725298,3.76248,2657.9,2657.7,3.34781028]
[1739202725517,3.76251,2657.8,2657.7,3.34781028]
[1739202726205,3.76248,2657.9,2657.7,3.34781028]
[1739202726503,3.76251,2657.8,2657.7,3.34781028]
[1739202728581,3.76238,2657.9,2657.7,3.34781028]
[1739202728779,3.76251,2657.8,2657.7,3.34781028]
[1739202729499,3.76238,2657.9,2657.7,3.34781028]
[1739202730057,3.76208,2658.1,2657.7,3.34781028]
[1739202730264,3.76216,2658.1,2657.8,0.8135]
[1739202730715,3.76206,2658.2,2657.8,0.8135]
[1739202730925,3.76224,2658.0,2657.8,0.8135]
[1739202731231,3.7618,2658.3,2657.8,0.8135]
[1739202731431,3.76236,2657.9,2657.8,0.8135]
[1739202731595,3.76225,2658.0,2657.8,0.8135]
[1739202731990,3.76225,2658.0,2657.8,4.16131028]
[1739202732215,3.76202,2658.2,2657.8,4.16131028]
[1739202732517,3.76219,2658.1,2657.8,4.16131028]
[1739202732828,3.76202,2658.2,2657.8,4.16131028]
[1739202733334,3.76183,2658.3,2657.8,7.92374028]
[1739202733626,3.76154,2658.5,2658.0,0.8135]
[1739202733837,3.76123,2658.7,2658.2,3.76183]
[1739202734017,3.76149,2658.6,2658.1,7.10987028]
[1739202734221,3.76123,2658.7,2658.1,7.10987028]
[1739202734519,3.7612,2658.8,2658.2,3.79946594]
[1739202734720,3.76141,2658.6,2658.3,0.7555]
[1739202734906,3.76153,2658.5,2658.3,0.7555]
[1739202735108,3.76153,2658.5,2658.4,3.34781028]
[1739202735319,3.76119,2658.8,2658.4,3.34781028]
[1739202735501,3.76135,2658.7,2658.4,3.34781028]
[1739202735706,3.76151,2658.5,2658.4,3.34781028]
[1739202736727,3.76135,2658.7,2658.4,3.34781028]
[1739202737037,3.76124,2658.7,2658.4,3.34781028]
[1739202737248,3.76101,2658.9,2658.4,3.34781028]
[1739202737399,3.76112,2658.8,2658.4,3.34781028]
[1739202737731,3.76101,2658.9,2658.4,3.34781028]
[1739202737933,0.75679012,2659.1,2658.4,3.34781028]
[1739202738236,3.7612,2658.8,2658.4,3.34781028]
[1739202738932,3.7609,2659.0,2658.4,3.34781028]
[1739202739237,3.76095,2658.9,2658.5,4.51701]
[1739202739541,3.76068,2659.1,2658.6,3.76128]
[1739202739740,3.76048,2659.3,2658.7,0.79310814]
[1739202740033,3.76056,2659.2,2658.7,4.55433814]
[1739202740193,3.76056,2659.2,2658.7,0.7555]
[1739202740598,3.76096,2658.9,2658.7,0.7555]
[1739202740832,3.76088,2659.0,2658.8,0.08125111]
[1739202741143,7.52181,2659.0,2658.9,3.34781028]
[1739202741340,3.76088,2659.0,2658.9,3.42853042]
[1739202745812,3.76088,2659.0,2658.9,2.92853042]
[1739202746820,9.70719604,2659.0,2658.9,2.92853042]
[1739202747145,9.70719604,2659.0,2658.9,4.26e-06]
[1739202747450,3.76209,2658.1,2657.9,0.7555]
[1739202747744,3.76198,2658.2,2658.0,0.07311158]
[1739202748099,5.93494604,2658.7,2658.0,0.07311158]
[1739202748296,5.93494604,2658.7,2658.0,2.92092186]
[1739202748297,3.76202,2658.2,2658.0,2.92092186]
[1739202749619,3.76202,2658.2,2658.0,0.07311158]
[1739202749849,3.76202,2658.2,2658.0,0.04311158]
[1739202750004,3.76202,2658.2,2658.0,0.07194102]
[1739202750315,3.76208,2658.1,2658.0,0.07194102]
[1739202753756,3.76236,2657.9,2657.8,2.84781028]
[1739202754963,3.76236,2657.9,2657.8,2.92004873]
[1739202755734,4.53496,2657.9,2657.8,8.45e-06]
[1739202755938,4.53496,2657.9,2657.5,2.84781028]
[1739202755939,3.76279,2657.6,2657.5,2.84781028]
[1739202756235,4.53539,2657.6,2657.5,2.84781028]
[1739202756437,3.76364,2657.0,2656.9,2.84781028]
[1739202756900,3.764,2656.8,2656.6,2.84781028]
[1739202757461,4.53547,2657.6,2656.7,3.76406]
[1739202757462,0.7726,2657.6,2656.7,3.76406]
[1739202757757,3.7635,2657.1,2656.7,6.80081028]
[1739202758147,3.7636,2657.1,2656.7,6.80081028]
[1739202758462,3.7634,2657.2,2656.7,6.80081028]
[1739202758761,3.76343,2657.2,2656.8,0.7555]
[1739202759717,3.7636,2657.1,2656.8,0.7555]
[1739202759916,3.76373,2657.0,2656.8,0.7555]
[1739202760157,3.76337,2657.2,2656.8,6.80081028]
[1739202760468,3.76317,2657.4,2656.9,0.7555]
[1739202760675,3.76279,2657.6,2657.1,3.76336]
[1739202760883,3.76251,2657.8,2657.4,0.7555]
[1739202761039,3.76263,2657.8,2657.6,0.7555]
[1739202761379,3.76253,2657.8,2657.6,0.7555]
[1739202762079,3.76227,2658.0,2657.7,2.84781028]
[1739202762284,3.7624,2657.9,2657.7,2.84781028]
[1739202762575,3.76251,2657.8,2657.7,2.84781028]
[1739202763157,7.52483,2657.9,2657.7,2.84781028]
[1739202763352,3.76237,2657.9,2657.7,2.91799889]
[1739202763569,3.76251,2657.8,2657.7,2.91799889]
[1739202765044,3.76251,2657.8,2657.7,0.07018861]
[1739202765389,3.76293,2657.5,2657.4,0.8042]
[1739202765591,3.76292,2657.6,2657.4,0.8042]
[1739202765746,3.76307,2657.4,2657.3,2.84781028]
[1739202770954,3.76307,2657.4,2657.3,2.91882262]
[1739202771552,4.57657,2657.4,2657.3,0.07101234]
[1739202771981,4.57657,2657.4,2657.0,2.84781028]
[1739202772300,3.7635,2657.1,2657.0,2.84781028]
[1739202774454,6.7635,2657.1,2657.0,2.84781028]
[1739202776791,3.76392,2656.8,2656.7,2.84781028]
[1739202780364,7.52767,2656.9,2656.7,2.84781028]
[1739202780555,3.76392,2656.8,2656.7,2.84781028]
[1739202784167,3.7638,2656.9,2656.7,2.84781028]
[1739202784417,0.8129,2657.8,2656.8,4.56093]
[1739202784585,0.8129,2657.8,2657.0,3.76356]
[1739202784780,3.76335,2657.2,2657.1,0.7971]
[1739202785092,3.76319,2657.4,2657.1,3.64491028]
[1739202785093,3.7633,2657.3,2657.1,3.64491028]
[1739202785600,3.76316,2657.4,2657.1,3.64491028]
[1739202785899,3.76245,2657.9,2657.2,0.10913158]
[1739202786102,3.76255,2657.8,2657.4,0.7971]
[1739202786270,3.76255,2657.8,2657.5,2.84781028]
[1739202786466,3.76267,2657.7,2657.5,2.91889357]
[1739202787704,3.76279,2657.6,2657.5,2.91889357]
[1739202788802,3.76279,2657.6,2657.5,0.07108329]
[1739202788970,3.76337,2657.2,2656.9,0.7971]
[1739202789367,3.76267,2657.7,2656.9,0.7971]
[1739202789701,3.76364,2657.0,2656.9,0.7971]
[1739202789905,3.76344,2657.2,2656.9,0.7971]
[1739202790072,3.76325,2657.3,2656.9,0.7971]
[1739202790271,3.76336,2657.2,2656.9,0.7971]
[1739202790480,3.7631,2657.4,2656.9,0.7971]
[1739202790709,3.76336,2657.2,2656.9,0.7971]
[1739202790922,3.76351,2657.1,2656.9,0.7971]
[1739202791483,3.76329,2657.3,2656.9,0.7971]
[1739202792018,0.8129,2657.8,2656.9,0.7971]
[1739202792229,3.7635,2657.1,2657.0,2.84781028]
[1739202792382,3.76315,2657.4,2657.0,2.84781028]
[1739202792586,7.52578,2657.6,2657.0,2.84781028]
[1739202792783,7.52578,2657.6,2657.1,0.7971]
[1739202792784,3.76285,2657.6,2657.1,0.7971]
[1739202793080,3.76316,2657.4,2657.1,0.7971]
[1739202793283,0.8129,2657.8,2657.1,0.7971]
[1739202793284,3.76253,2657.8,2657.3,0.8134]
[1739202793504,3.76224,2658.0,2657.5,3.76291]
[1739202793722,0.8123,2658.3,2657.5,0.8134]
[1739202794025,5.93499604,2658.7,2657.8,0.8134]
[1739202794026,3.7621,2658.1,2657.8,0.8134]
[1739202794232,3.7621,2658.1,2657.4,6.61079028]
[1739202794233,3.7621,2658.1,2657.6,3.76278]
[1739202794530,3.76211,2658.1,2657.9,2.84781028]
[1739202794680,3.76222,2658.0,2657.9,2.84781028]
[1739202795301,3.76211,2658.1,2657.9,2.84781028]
[1739202795827,3.76222,2658.0,2657.9,2.84781028]
[1739202796027,3.76155,2658.5,2657.9,2.84781028]
[1739202796232,3.73339365,2658.7,2657.9,2.88543015]
[1739202796233,3.76182,2658.3,2657.9,2.88543015]
[1739202796391,0.8123,2658.7,2657.9,2.88543015]
[1739202796741,3.76172,2658.4,2658.0,2.84781028]
[1739202797026,3.76154,2658.5,2658.0,6.61000028]
[1739202797191,3.76154,2658.5,2658.1,0.8134]
[1739202797832,7.52318,2658.5,2658.1,0.8134]
[1739202798131,3.76154,2658.5,2658.1,0.8134]
[1739202798626,3.76168,2658.4,2658.1,0.8134]
[1739202798921,3.76173,2658.4,2658.1,0.8134]
[1739202799330,3.76154,2658.5,2658.1,0.8134]
[1739202799902,7.52314,2658.5,2658.1,0.8134]
[1739202800114,3.76126,2658.7,2658.1,0.8134]
[1739202800305,7.5226,2658.7,2658.1,4.57548]
[1739202800504,3.76102,2658.9,2658.3,3.76175]
[1739202800935,3.76131,2658.7,2658.4,0.06956992]
[1739202801290,3.76151,2658.5,2658.4,0.06956992]
[1739202801833,3.76151,2658.5,2658.2,2.84781028]
[1739202802042,3.76132,2658.7,2658.4,0.06956992]
[1739202802240,7.52263,2658.7,2658.2,6.60972028]
[1739202802538,3.76131,2658.7,2658.5,0.06947081]
[1739202802707,3.76131,2658.7,2658.2,6.60972028]
[1739202802906,3.76131,2658.7,2658.6,0.06937171]
[1739202803105,3.76131,2658.7,2658.2,6.60972028]
[1739202803308,3.76131,2658.7,2658.6,0.06937171]
[1739202803541,3.76131,2658.7,2658.2,6.60972028]
[1739202803733,3.76131,2658.7,2658.6,0.06937171]
[1739202804034,2.17371604,2659.3,2658.6,0.06937171]
[1739202804035,3.76059,2659.2,2658.6,0.06937171]
[1739202804211,3.76024,2659.4,2658.7,3.76116]
[1739202804388,4.51379,2659.5,2658.8,3.76095]
[1739202804738,3.76041,2659.3,2658.9,0.8297]
[1739202805088,3.76041,2659.3,2659.0,0.06868478]
[1739202805401,3.76034,2659.4,2659.0,0.06868478]
[1739202805894,3.76019,2659.5,2659.0,3.82947478]
[1739202806237,3.76003,2659.6,2659.1,2.84781028]
[1739202806407,3.76025,2659.4,2659.1,2.91632426]
[1739202808032,3.76041,2659.3,2659.1,2.91632426]
[1739202808530,7.5203,2659.5,2659.1,2.91632426]
[1739202808688,3.7601,2659.5,2659.1,2.91632426]
[1739202808893,3.76008,2659.6,2659.1,6.67697426]
[1739202809091,3.75963,2659.9,2659.1,6.67697426]
[1739202809335,3.75979,2659.8,2659.1,6.67697426]
[1739202809514,3.75989,2659.7,2659.2,3.76048]
[1739202809722,3.75997,2659.6,2659.2,3.76048]
[1739202809923,3.75997,2659.6,2659.3,0.06773839]
[1739202810435,3.7602,2659.5,2659.4,0.06763935]
[1739202810645,3.76002,2659.6,2659.1,6.60847028]
[1739202810793,3.76002,2659.6,2659.2,0.8297]
[1739202811233,3.76002,2659.6,2659.3,0.06773839]
[1739202811534,3.76002,2659.6,2659.2,0.8297]
[1739202811743,0.75555956,2659.9,2659.4,0.06763935]
[1739202811898,0.7725804,2660.0,2659.3,0.06773839]
[1739202812238,0.0189804,2660.0,2659.6,0.8297]
[1739202812452,0.0189804,2660.0,2659.6,4.58966]
[1739202812608,3.7783904,2660.0,2659.7,0.06718455]
[1739202812948,3.75968,2659.8,2659.7,2.91499483]
[1739202813626,3.75968,2659.8,2659.7,2.84781028]
[1739202813823,3.75968,2659.8,2659.7,2.91240943]
[1739202815265,3.75968,2659.8,2659.7,0.06459915]
[1739202815564,3.76019,2659.5,2659.1,2.84781028]
[1739202815752,0.7725804,2660.0,2659.1,6.64598356]
[1739202815961,3.76007,2659.6,2659.2,0.06509431]
[1739202816157,7.52012,2659.6,2659.2,0.06509431]
[1739202816317,3.76011,2659.5,2659.2,0.06509431]
[1739202817419,3.7603,2659.4,2659.2,0.06509431]
[1739202818566,3.76011,2659.5,2659.2,0.06509431]
[1739202818772,0.7725804,2660.0,2659.2,0.06509431]
[1739202818773,3.76038,2659.3,2659.2,0.06509431]
[1739202819076,3.76024,2659.4,2659.2,0.06509431]
[1739202819564,3.76038,2659.3,2659.2,0.06509431]
[1739202820071,3.76024,2659.4,2659.2,0.06509431]
[1739202820279,3.76004,2659.6,2659.2,0.06509431]
[1739202820586,7.52013,2659.6,2659.2,0.06509431]
[1739202820878,3.76004,2659.6,2659.2,0.06509431]
[1739202821045,3.76027,2659.4,2659.2,0.06509431]
[1739202821247,3.7602,2659.5,2659.2,0.06509431]
[1739202821544,3.76004,2659.6,2659.2,0.06509431]
[1739202821746,0.7536,2659.9,2659.2,0.06509431]
[1739202821945,3.76035,2659.4,2659.2,0.06509431]
[1739202822271,0.7536,2659.9,2659.2,0.06509431]
[1739202822272,3.76021,2659.5,2659.2,0.06509431]
[1739202823081,3.76021,2659.5,2659.2,0.82459431]
[1739202823379,3.75985,2659.7,2659.2,4.58504431]
[1739202823888,3.76009,2659.6,2659.2,0.82459431]
[1739202824235,3.76038,2659.3,2659.2,0.82459431]
[1739202824435,3.76025,2659.4,2659.2,0.06509431]
[1739202824669,3.7601,2659.5,2659.2,0.06509431]
[1739202824849,3.75968,2659.8,2659.2,0.06509431]
[1739202825051,3.76037,2659.4,2659.2,0.06509431]
[1739202825374,3.76038,2659.3,2659.2,0.06509431]
[1739202825537,3.76037,2659.4,2659.2,0.06509431]
[1739202825759,3.76014,2659.5,2659.2,0.06509431]
[1739202825942,3.76,2659.6,2659.2,0.06509431]
[1739202826138,3.75968,2659.8,2659.2,0.06509431]
[1739202826373,3.76038,2659.3,2659.2,0.06509431]
[1739202826562,3.76032,2659.4,2659.2,0.06509431]
[1739202826879,3.76,2659.6,2659.2,0.06509431]
[1739202827048,3.7601,2659.5,2659.2,0.06509431]
[1739202828290,4.58656,2659.9,2659.2,0.06509431]
[1739202828291,3.76038,2659.3,2659.2,0.06509431]
[1739202830479,3.76038,2659.3,2658.8,2.84781028]
[1739202830685,3.76095,2658.9,2658.8,2.84781028]
[1739202831056,3.76095,2658.9,2658.5,0.7595]
[1739202831057,3.76114,2658.8,2658.5,0.7595]
[1739202831388,3.76145,2658.6,2658.2,0.7595]
[1739202832040,3.76161,2658.5,2658.2,0.7595]
[1739202832174,0.827,2658.9,2658.1,0.19627409]
[1739202832377,3.76194,2658.2,2657.7,7.71963]
[1739202832686,3.76194,2658.2,2657.9,0.19628796]
[1739202833255,4.58875,2658.4,2657.9,0.19628796]
[1739202833556,4.58875,2658.4,2657.9,3.95853796]
[1739202833761,3.7614,2658.6,2658.0,0.7595]
[1739202834061,3.7614,2658.6,2658.0,0.79711853]
[1739202834381,0.827,2659.5,2658.7,3.76121]
[1739202834549,3.76054,2659.2,2658.7,3.76121]
[1739202834991,4.58716,2659.5,2658.8,0.03760723]
[1739202835291,3.75977,2659.8,2659.1,3.7606]
[1739202835446,3.75983,2659.7,2659.4,0.7595]
[1739202835653,7.51975,2659.7,2659.4,0.7595]
[1739202835865,3.75997,2659.6,2659.4,0.7595]
[1739202836469,3.75983,2659.7,2659.4,0.7595]
[1739202836981,0.0189804,2660.0,2659.4,0.7595]
[1739202837177,3.76003,2659.6,2659.4,0.7595]
[1739202838900,3.75982,2659.7,2659.4,0.7595]
[1739202839072,7.51973,2659.7,2659.4,0.7595]
[1739202839259,3.75969,2659.8,2659.4,0.7595]
[1739202839595,3.75984,2659.7,2659.4,0.7595]
[1739202839797,7.51924,2659.9,2659.4,0.7595]
[1739202840013,3.7596,2659.9,2659.4,0.7595]
[1739202840193,3.75984,2659.7,2659.4,0.7595]
[1739202840389,0.0189804,2660.0,2659.9,0.8176]
[1739202840927,0.0189804,2660.0,2659.9,0.8076]
[1739202841622,0.0189804,2660.0,2659.7,3.7598]
[1739202842132,0.0189804,2660.0,2659.5,2.84781028]
[1739202842294,0.0189804,2660.0,2659.9,3.75953]
[1739202844043,0.0189804,2660.0,2659.9,4.57713]
[1739202844337,0.0189804,2660.0,2659.9,11.17244028]
[1739202845248,0.0189804,2660.0,2659.9,10.62244028]
[1739202845801,0.0189804,2660.0,2659.9,10.68680211]
[1739202846339,0.0189804,2660.0,2659.9,6.92727211]
[1739202846540,0.0189804,2660.0,2659.9,10.68680211]
[1739202846832,0.0189804,2660.0,2659.9,3.72977211]
[1739202847129,0.0189804,2660.0,2659.9,7.48930211]
[1739202847327,0.0189804,2660.0,2659.9,3.72977211]
[1739202848628,0.0189804,2660.0,2659.9,2.91217211]
[1739202849031,3.7783704,2660.0,2659.9,0.06436183]
[1739202849344,3.75956,2659.9,2659.4,0.8176]
[1739202849723,3.75983,2659.7,2659.4,0.8176]
[1739202850134,0.0189804,2660.0,2659.4,0.8176]
[1739202850456,3.75953,2659.9,2659.4,0.8176]
[1739202850956,0.0189804,2660.0,2659.3,2.84781028]
[1739202850957,3.76003,2659.6,2659.3,2.84781028]
[1739202851428,3.75994,2659.7,2659.3,2.84781028]
[1739202851960,7.5199,2659.7,2659.3,2.84781028]
[1739202852156,3.76011,2659.5,2659.3,2.84781028]
[1739202852454,0.7609,2659.6,2659.3,2.84781028]
[1739202852758,3.75999,2659.6,2659.3,2.84781028]
[1739202852964,3.7599,2659.7,2659.3,2.84781028]
[1739202853165,3.75996,2659.6,2659.3,2.84781028]
[1739202853460,0.0189804,2660.0,2659.5,0.7978]
[1739202854151,0.0189804,2660.0,2659.7,3.75968]
[1739202854350,0.0189804,2660.0,2659.6,3.75987]
[1739202854673,0.0189804,2660.0,2659.6,3.75983]
[1739202854880,0.0189804,2660.0,2659.7,3.75979]
[1739202855034,0.0189804,2660.0,2659.6,3.75983]
[1739202855372,0.0189804,2660.0,2659.6,7.51972]
[1739202855570,0.0189804,2660.0,2659.7,3.75968]
[1739202855978,0.0189804,2660.0,2659.8,3.75958]
[1739202856274,0.0189804,2660.0,2659.9,4.55733]
[1739202856447,0.0189804,2660.0,2659.9,3.64561028]
[1739202857932,0.0189804,2660.0,2659.9,2.84781028]
[1739202858778,4.5510704,2660.0,2659.9,2.84781028]
[1739202859978,0.0189804,2660.0,2659.9,2.84781028]
[1739202860780,0.0189804,2660.0,2659.9,2.91196475]
[1739202862172,0.0189804,2660.0,2659.9,3.70976475]
[1739202862545,0.0189804,2660.0,2659.9,7.46929475]
[1739202862953,0.0189804,2660.0,2659.9,6.67149475]
[1739202863649,0.0189804,2660.0,2659.9,2.91196475]
[1739202864269,3.7783704,2660.0,2659.9,2.91196475]
[1739202864478,0.0189804,2660.0,2659.9,2.91196475]
[1739202864872,3.7783704,2660.0,2659.9,2.91196475]
[1739202865054,0.0189804,2660.0,2659.9,2.91196475]
[1739202866152,0.0189804,2660.0,2659.9,6.70908691]
[1739202866367,0.0189804,2660.0,2659.9,7.46929475]
[1739202866765,0.0189804,2660.0,2659.9,10.66679475]
[1739202867191,0.0189804,2660.0,2659.9,11.21679475]
[1739202868980,0.0189804,2660.0,2659.9,14.21679475]
[1739202869188,0.0189804,2660.0,2659.9,16.39051079]
[1739202869189,4e-07,2660.0,2659.9,16.39051079]
[1739202869638,4e-07,2660.0,2659.9,16.76741079]
[1739202871579,4e-07,2660.0,2659.9,17.53126467]
[1739202873189,4e-07,2660.0,2659.9,17.73126467]
[1739202874377,4e-07,2660.0,2659.9,17.53126467]
[1739202874627,4e-07,2660.0,2659.9,17.73126467]
[1739202875966,0.7727,2661.4,2661.3,3.75756]
[1739202876286,3.75619,2662.3,2661.8,3.75673]
[1739202876608,3.75619,2662.3,2661.0,3.1975]
[1739202876609,0.7727,2661.9,2661.0,10.7133]
[1739202876806,4.52955,2661.8,2661.2,3.75762]
[1739202877010,3.75714,2661.6,2661.1,3.75774]
[1739202877225,0.7727,2661.5,2661.0,3.1975]
[1739202877368,4.53005,2661.5,2661.0,6.95548]
[1739202877573,3.75742,2661.4,2660.9,0.293]
[1739202877906,3.75742,2661.4,2660.9,4.05111]
[1739202879101,4.53004,2661.5,2661.0,3.75796]
[1739202879705,8.28741,2661.5,2660.9,4.05105]
[1739202880006,3.75753,2661.4,2660.9,0.293]